[Event "Prague Festival Open 2022"]
[Site "Prague"]
[Date "2022.06.17"]
[Round "9.4"]
[White "Kozak, Antoni"]
[Black "Sankalp Gupta"]
[Result "1/2-1/2"]
[ECO "A13"]
[WhiteElo "2459"]
[BlackElo "2505"]
[Annotator "TA"]
[PlyCount "103"]
[EventDate "2022.06.10"]
[EventType "swiss"]
[EventCountry "CZE"]
[SourceTitle "playchess.com"]
[Source "ChessBase"]
[SourceQuality "1"]
[TimeControl "40/5400+30:1800+30"]

{[%evp 9,103,9,9,0,18,14,11,17,15,-1,12,21,22,19,19,12,25,25,47,64,54,31,35,25,41,0,0,0,40,43,51,58,173,160,326,319,459,60,62,68,68,67,63,63,63,63,63,63,108,40,56,35,35,32,30,27,40,41,41,41,41,41,37,43,52,52,54,53,52,37,52,53,52,52,65,65,66,66,66,66,64,8,8,8,8,8,8,8,8,8,8,8,8,8,8,8]} 1. Nf3 {[%emt 0:00:07]} d5 {[%emt 0:01:15]} 2. e3 {[%emt 0:00:09]} Nf6 {[%emt 0:04:47]} 3. c4 {[%emt 0:00:25]} e6 {[%emt 0:00:03]} 4. b3 {[%emt 0:00:48]} b6 {[%emt 0:07:03]} 5. Bb2 {[%emt 0:06:16]} Bb7 {[%emt 0:00:22]} 6. Nc3 {[%emt 0:02:18] A13: English Opening: 1...e6.} a6 {[%emt 0:00:33]} 7. g3 {[%emt 0:03:36]} dxc4 {[%emt 0:13:01]} 8. bxc4 {[%emt 0:00:41]} c5 {[%emt 0:00:01]} 9. Bg2 {[%emt 0:01:22] [#]} Bd6 $146 {[%emt 0:00:41]} ({Predecessor:} 9... Be7 10. O-O O-O 11. Qe2 Qc7 12. d4 cxd4 13. exd4 Rc8 14. d5 Qxc4 15. dxe6 fxe6 16. Qxc4 Rxc4 {½-½ (53) Eraschenkov,D (2386)-Rathneesh,R (2006) Bhopal 2019}) 10. O-O {[%emt 0:02:21]} O-O {[%emt 0:00:06]} 11. Qe2 {[%emt 0:04:28]} Nc6 {[%emt 0:00:11][%cal Bb8c6,Bc6e7,Be7f5][%mdl 32]} 12. Ne1 {[%emt 0:03:17]} Qc7 {[%emt 0:02:18]} 13. f4 {[%emt 0:01:10]} Rfe8 {[%emt 0:06:51]} 14. g4 {[%emt 0:03:52]} Nd7 {[%emt 0:04:31]} 15. g5 {[%emt 0:07:16]} Ne7 {[%emt 0:03:08]} 16. Ne4 {[%emt 0:03:07]} Nf5 {[%emt 0:01:39][%cal Ob6b5]} 17. Nd3 {[%emt 0:03:03]} b5 {[%emt 0:04:42]} 18. Ndf2 {[%emt 0:05:15]} Nb6 {[%emt 0:05:39]} 19. d3 $1 {[%emt 0:06:53]} (19. Nxd6 Nxd6 20. Bxb7 Qxb7 $15) 19... bxc4 {[%emt 0:01:12]} 20. dxc4 {[%emt 0:00:34]} e5 {[%emt 0:18:20]} (20... Rab8 $14) 21. Bh3 $18 {[%emt 0:07:18]} exf4 $2 {[%emt 0:00:08]} (21... Nxe3 $16 {keeps fighting.} 22. Qxe3 exf4) 22. Bxf5 {[%emt 0:00:44]} fxe3 {[%emt 0:00:01] [#]} (22... f3 $142 23. Qxf3 Bxh2+ 24. Kg2 Be5) 23. Qh5 $1 {[%emt 0:20:59]} Bxh2+ $1 $14 {[%emt 0:00:41]} 24. Qxh2 {[%emt 0:01:25] Really sharp!} exf2+ {[%emt 0:00:17]} 25. Nxf2 {[%emt 0:02:00]} Qxh2+ {[%emt 0:00:02]} 26. Kxh2 {[%emt 0:00:04] Threatens to win with Bd3.} Nxc4 {[%emt 0:00:08]} 27. Bc1 {[%emt 0:00:10] This bishop pair is nice.} Rad8 {[%emt 0:01:13]} 28. Rb1 {[%emt 0:01:55]} Bc6 {[%emt 0:03:48]} 29. Bd3 {[%emt 0:01:31]} ({Better is} 29. Rd1 $16) 29... Ne5 {[%emt 0:02:12]} 30. Bxa6 {[%emt 0:00:12]} Ra8 {[%emt 0:00:21]} 31. Bb5 {[%emt 0:02:54]} (31. Rb6 {[#]} Rxa6 $1 {[%mdl 512]} 32. Rxa6 Bb5 $17) 31... Rxa2 {[%emt 0:00:21]} 32. Kg3 {[%emt 0:01:44]} Raa8 {[%emt 0:11:33]} 33. Re1 {[%emt 0:02:40][%cal Oe1e5]} Rab8 {[%emt 0:01:17]} 34. Bxc6 {[%emt 0:01:54]} Nxc6 {[%emt 0:00:03]} 35. Bf4 {[%emt 0:02:27]} Rxe1 {[%emt 0:02:32]} 36. Rxe1 {[%emt 0:00:02]} Rc8 {[%emt 0:00:10]} 37. Ne4 {[%emt 0:00:29]} Nd4 {[%emt 0:00:16]} 38. Nd6 {[%emt 0:02:26]} Rf8 {[%emt 0:00:02]} 39. Re7 {[%emt 0:00:48]} f6 {[%emt 0:03:58]} 40. Kg4 {[%emt 0:00:47]} Nc6 {[%emt 0:00:36]} 41. Rc7 {[%emt 0:30:56]} fxg5 {[%emt 0:30:10]} 42. Bg3 {[%emt 0:00:00]} (42. Kxg5 Nd4 43. Re7 h6+ 44. Kg4 h5+ 45. Kg3 Rf6 $11) (42. Bxg5 Ne5+ 43. Kg3 Rf3+ 44. Kg2 h6 $16) 42... Nd8 {[%emt 0:00:00]} 43. Be5 $1 {[%emt 0:00:00]} Nf7 {[%emt 0:00:00] [#]} 44. Bc3 {[%emt 0:00:00]} g6 {[%emt 0:00:00]} ({Less strong is} 44... h5+ 45. Kxh5 Nxd6 46. Rxg7+ Kh8 47. Rg6+ (47. Rxg5+ Kh7 $14) 47... Kh7 48. Rxd6 $16) 45. Nxf7 {[%emt 0:00:00] White is much more active.} (45. Ne4 $14 h5+ 46. Kg3) 45... Rxf7 {[%emt 0:00:00][%mdl 4096] Endgame KRB-KR. The position is equal.} 46. Rc8+ {[%emt 0:00:00]} Rf8 {[%emt 0:00:00]} 47. Rxc5 {[%emt 0:00:00]} h5+ {[%emt 0:00:00]} 48. Kxg5 {[%emt 0:00:00]} Rf5+ {[%emt 0:00:00]} 49. Rxf5 {[%emt 0:00:00]} gxf5 {[%emt 0:00:00]} 50. Kxf5 {[%emt 0:00:00]} h4 {[%emt 0:00:00]} 51. Kg4 {[%emt 0:00:00]} h3 {[%emt 0:00:00]} 52. Kxh3 {[%emt 0:00:00] Weighted Error Value: White=0.17 (very precise) /Black=0.13 (very precise)} 1/2-1/2

[Event "Prague Festival Open 2022"]
[Site "Prague"]
[Date "2022.06.17"]
[Round "9.5"]
[White "Stremavicius, Titas"]
[Black "Popovic, Dusan"]
[Result "1/2-1/2"]
[WhiteElo "2508"]
[BlackElo "2480"]
[Annotator "TA"]
[PlyCount "34"]
[EventDate "2022.06.10"]
[EventType "swiss"]
[EventCountry "CZE"]
[SourceTitle "playchess.com"]
[Source "ChessBase"]
[SourceQuality "1"]
[TimeControl "40/5400+30:1800+30"]

{[%evp 12,18,61,31,38,31,41,35,50]} 1. c4 {[%emt 0:00:53]} g6 {[%emt 0:00:07]} 2. d4 {[%emt 0:00:21]} Nf6 {[%emt 0:00:11]} 3. Nc3 {[%emt 0:00:07]} Bg7 {[%emt 0:00:04]} 4. e4 {[%emt 0:00:06]} d6 {[%emt 0:00:08]} 5. Be2 {[%emt 0:00:07]} O-O {[%emt 0:00:38]} 6. Be3 {[%emt 0:00:04]} Nbd7 {[%emt 0:00:20]} 7. h4 {[%emt 0:00:19] White is more active. White is slightly better.} c5 {[%emt 0:01:08] E73: King's Indian: Averbakh Variation without 6...c5.} 8. d5 {[%emt 0:01:19]} b5 {[%emt 0:00:33]} 9. cxb5 {[%emt 0:00:25]} a6 {[%emt 0:01:15] [#]} {Predecessor:} 10. a4 $146 Qa5 11. Bd2 axb5 12. Nxb5 Qb6 13. Qc2 Ba6 14. Nf3 Nxe4 15. Qxe4 Bxb5 16. Bxb5 Qxb5 17. axb5 Rxa1+ {0-1 (29) Coleman,T (2333)-Bernadskiy,V (2619) Chess.com INT 2020} 1/2-1/2

[Event "Prague Festival Open 2022"]
[Site "Prague"]
[Date "2022.06.17"]
[Round "9.6"]
[White "Fus, Jakub"]
[Black "Wagner, Dennis"]
[Result "1-0"]
[ECO "E60"]
[WhiteElo "2378"]
[BlackElo "2586"]
[Annotator "TA"]
[PlyCount "113"]
[EventDate "2022.06.10"]
[EventType "swiss"]
[EventCountry "CZE"]
[SourceTitle "playchess.com"]
[Source "ChessBase"]
[SourceQuality "1"]
[TimeControl "40/5400+30:1800+30"]

{[%evp 10,113,17,18,35,21,28,1,13,2,12,21,41,0,0,2,0,-20,-20,-31,-31,-23,-21,-23,-25,-27,-25,-56,-37,-60,-56,-86,-78,-75,-67,-69,-63,-62,-71,-67,-60,-104,-101,-105,-99,-108,-110,-105,-96,-104,-97,-104,-96,-96,-89,-97,-93,-76,-47,-88,-13,-45,-53,-90,0,0,0,0,0,0,0,0,0,0,0,0,0,0,27,22,22,6,13,0,22,23,24,24,236,233,228,233,226,213,224,148,142,135,541,554,413,358,1907,2004,29987,29988]} 1. d4 {[%emt 0:00:03]} Nf6 {[%emt 0:00:46]} 2. c4 {[%emt 0:00:14]} g6 {[%emt 0:00:16]} 3. Nf3 {[%emt 0:01:55]} Bg7 {[%emt 0:00:14]} 4. e3 {[%emt 0:00:11]} O-O {[%emt 0:00:13]} 5. Be2 {[%emt 0:00:25]} d6 {[%emt 0:08:15]} 6. O-O {[%emt 0:00:36]} e5 {[%emt 0:04:45] E60: King's Indian: Unusual lines and Fianchetto Variation without Nc3.} 7. dxe5 {[%emt 0:18:25]} (7. Nc3 {seems wilder.} Bf5 8. Qb3 e4 9. Nd2) 7... dxe5 {[%emt 0:00:07] [#]} 8. Qxd8 $146 {[%emt 0:02:12]} ({Predecessor:} 8. Nxe5 Qe7 9. Nd3 Rd8 10. Qb3 Na6 11. Nc3 c6 12. f3 Nh5 13. Ne4 Be6 14. a4 {1-0 (39) Kovalyov,A (2615)-Xiong,J (2666) Fort Worth 2019}) 8... Rxd8 {[%emt 0:00:02] The position is equal.} 9. Nxe5 {[%emt 0:00:16][%cal Bf3e5,Be5d3,Bd3f4][%mdl 32]} Ne4 {[%emt 0:00:57]} 10. Nd3 {[%emt 0:00:35]} Na6 {[%emt 0:01:12]} 11. Na3 {[%emt 0:19:02][%cal Bb1a3,Ba3b5,Bb5d4][%mdl 32]} (11. f3 $5 {[%cal Rf3e4]} Nec5 12. Nxc5 Nxc5 13. Nc3 $11) 11... Bf5 {[%emt 0:28:28][%cal Oe4d2]} 12. Nf4 {[%emt 0:06:34]} Nec5 $36 {[%emt 0:00:05][%cal Be4c5,Bc5d3,Bd3e5,Be5g4][%mdl 2080] Black is pushing.} 13. g4 {[%emt 0:06:15]} Bd3 {[%emt 0:11:37]} 14. Nb5 {[%emt 0:12:34]} Bxe2 {[%emt 0:12:34]} 15. Nxe2 {[%emt 0:00:16]} Nd3 {[%emt 0:00:04]} 16. Rb1 {[%emt 0:11:40]} Ne5 {[%emt 0:00:12][%csl LRc4,LRg4]} 17. b3 {[%emt 0:00:53]} Nxg4 {[%emt 0:00:27]} 18. Nbd4 {[%emt 0:03:03]} Nb4 {[%emt 0:06:16]} 19. a3 {[%emt 0:01:23]} Nd3 {[%emt 0:00:18]} 20. Bd2 {[%emt 0:04:40]} c5 {[%emt 0:01:17]} 21. Nf3 {[%emt 0:00:06]} Nde5 {[%emt 0:07:16]} 22. Nxe5 {[%emt 0:00:07][%cal Od2a5]} Bxe5 {[%emt 0:00:04]} 23. Rfd1 $1 {[%emt 0:02:23]} Bxh2+ {[%emt 0:00:51]} 24. Kg2 {[%emt 0:00:04]} Be5 {[%emt 0:00:49]} 25. Bc3 {[%emt 0:01:55]} b6 {[%emt 0:02:24]} (25... h5 {with more complications.} 26. e4 b6 27. Rd5 Bxc3 28. Nxc3 Nf6) 26. Bxe5 {[%emt 0:00:16]} Nxe5 {[%emt 0:00:01]} 27. Nf4 {[%emt 0:00:08]} Kg7 {[%emt 0:00:37]} 28. Nd5 {[%emt 0:00:16]} h5 {[%emt 0:00:35]} 29. f4 {[%emt 0:00:50] [#]} Nc6 {[%emt 0:02:14]} 30. b4 {[%emt 0:00:37]} cxb4 {[%emt 0:00:36]} 31. axb4 {[%emt 0:00:04]} Rd7 {[%emt 0:08:31]} 32. Kf3 {[%emt 0:00:59]} Ne7 {[%emt 0:02:08]} 33. e4 {[%emt 0:02:10]} Rc8 {[%emt 0:00:03]} 34. Rbc1 {[%emt 0:00:46]} Rb7 {[%emt 0:00:54]} ({Black should play} 34... f5 $17 35. Ne3 fxe4+ 36. Kxe4 Rdc7) 35. Ke3 {[%emt 0:00:55]} a5 {[%emt 0:01:21]} 36. b5 {[%emt 0:01:27]} Ng8 {[%emt 0:00:34]} (36... a4 $17 37. Rc3 Nxd5+ 38. exd5 Ra7) 37. Kd4 $11 {[%emt 0:00:36]} Nf6 {[%emt 0:00:34]} 38. e5 {[%emt 0:02:19]} Nd7 {[%emt 0:00:19]} 39. Rc3 {[%emt 0:00:32][%cal Of4f5]} Nc5 {[%emt 0:00:14]} 40. f5 {[%emt 0:00:07] Prevents Ne6+.} gxf5 {[%emt 0:01:07][%cal Bg6f5,Bf5f4][%mdl 32]} 41. Rg3+ {[%emt 0:03:58]} Kh6 {[%emt 0:00:56][%cal Of5f4]} 42. Rh1 {[%emt 0:07:26]} Ne6+ {[%emt 0:03:56]} 43. Kc3 {[%emt 0:02:25]} f4 {[%emt 0:11:51]} 44. Rgh3 {[%emt 0:00:44][%mdl 1024] White has compensation.} Ng7 {[%emt 0:00:04]} 45. Rf3 {[%emt 0:02:59]} Ne6 {[%emt 0:01:05]} 46. Rfh3 {[%emt 0:00:30]} Ng7 {[%emt 0:00:11]} 47. Rf1 {[%emt 0:04:02]} Re8 $1 {[%emt 0:12:36]} 48. Rxf4 {[%emt 0:00:12]} Rxe5 $2 {[%emt 0:01:05]} (48... Re6 $11 {and Black has nothing to worry.}) 49. Rf6+ $18 {[%emt 0:00:07]} Kh7 {[%emt 0:00:05]} 50. Rxb6 {[%emt 0:00:49]} Rxb6 {[%emt 0:01:00]} 51. Nxb6 {[%emt 0:00:04][%mdl 4096] Endgame And now Nd7 would win. KRN-KRN} Re1 {[%emt 0:00:45]} 52. Kd2 {[%emt 0:02:59]} Rb1 {[%emt 0:00:36]} 53. Nd5 {[%emt 0:00:37] Kc2 is the strong threat.} a4 $2 {[%emt 0:01:45][%mdl 8192] This move loses the game for Black.} (53... Kh6 $16 {is a better chance.}) 54. Kc2 {[%emt 0:00:05]} Re1 {[%emt 0:00:15]} 55. b6 {[%emt 0:00:39] [#] Hoping for b7.} Re2+ $2 {[%emt 0:00:29]} (55... Ne6 56. b7 Nd4+ 57. Kb2 Nc6 58. Rxh5+ Kg7 59. Rg5+ Kf8) 56. Kb1 {[%emt 0:01:56] Threatens to win with b7.} Re8 {[%emt 0:01:16]} 57. Nf6+ {[%emt 0:00:04] Weighted Error Value: White=0.11 (very precise) /Black=0.49} 1-0

[Event "Prague Festival Open 2022"]
[Site "Prague"]
[Date "2022.06.17"]
[Round "9.7"]
[White "Czerw, Dawid"]
[Black "Huzman, Alexander"]
[Result "1/2-1/2"]
[ECO "C10"]
[WhiteElo "2386"]
[BlackElo "2541"]
[Annotator "TA"]
[PlyCount "30"]
[EventDate "2022.06.10"]
[EventType "swiss"]
[EventCountry "CZE"]
[SourceTitle "playchess.com"]
[Source "ChessBase"]
[SourceQuality "1"]
[TimeControl "40/5400+30:1800+30"]

{[%evp 14,30,27,0,0,0,36,9,11,14,12,7,6,4,14,19,20,20,19]} 1. e4 {[%emt 0:00:03]} e6 {[%emt 0:00:32]} 2. d4 {[%emt 0:00:07]} d5 {[%emt 0:00:04]} 3. Nc3 {[%emt 0:00:05]} dxe4 {[%emt 0:00:09]} 4. Nxe4 {[%emt 0:00:05]} Nd7 {[%emt 0:00:02]} 5. Nf3 {[%emt 0:00:14]} Ngf6 {[%emt 0:00:05]} 6. Bg5 {[%emt 0:00:12]} h6 {[%emt 0:00:28]} 7. Nxf6+ {[%emt 0:00:05]} Nxf6 {[%emt 0:00:04]} 8. Be3 {[%emt 0:00:07]} Bd6 {[%emt 0:01:37] C10: French with 3 Nc3: Unusual Black 3rd moves and 3...dxe4.} 9. Bd3 {[%emt 0:02:43]} Bd7 {[%emt 0:01:01]} 10. Ne5 {[%emt 0:03:15] [#]} Bxe5 $146 {[%emt 0:04:20] The position is equal.} ({Predecessor:} 10... Qe7 11. O-O Bxe5 12. dxe5 Nd5 13. Bd2 O-O-O 14. Qf3 Bc6 15. Be4 Qe8 16. Qa3 Nb6 {½-½ (34) Zeller,F (2420)-Bellini,F (2459) Switzerland 2013}) 11. dxe5 {[%emt 0:00:15]} Nd5 {[%emt 0:00:02]} 12. Bd2 {[%emt 0:06:11]} Qh4 {[%emt 0:01:34]} 13. Qe2 {[%emt 0:07:14]} Nf4 {[%emt 0:07:42]} 14. Bxf4 {[%emt 0:01:36]} Qxf4 {[%emt 0:00:08]} 15. Qe4 {[%emt 0:01:44]} Qxe4+ {[%emt 0:00:29] Not much happened in this game.  Weighted Error Value: White=0.08 (flawless) /Black=0.08 (flawless)} 1/2-1/2

[Event "Prague Festival Open 2022"]
[Site "Prague"]
[Date "2022.06.17"]
[Round "9.8"]
[White "Niedbala, Bartlomiej"]
[Black "Iniyan, P."]
[Result "0-1"]
[ECO "C95"]
[WhiteElo "2384"]
[BlackElo "2518"]
[Annotator "TA"]
[PlyCount "166"]
[EventDate "2022.06.10"]
[EventType "swiss"]
[EventCountry "CZE"]
[SourceTitle "playchess.com"]
[Source "ChessBase"]
[SourceQuality "1"]
[TimeControl "40/5400+30:1800+30"]

{[%evp 29,166,14,18,0,47,42,39,45,41,40,53,26,48,33,77,77,93,87,99,62,52,35,72,78,69,37,83,43,107,111,195,204,209,126,122,125,120,114,137,22,30,31,35,65,47,0,0,0,0,-166,-86,-154,-152,-183,-185,-327,-291,-388,-162,-203,-189,-185,-187,-196,-196,-181,-181,-182,-152,-147,-119,-112,-8,-8,-20,-8,-8,-9,0,0,0,0,0,-8,0,-10,0,-281,-266,-576,-551,-564,-499,-577,-577,-577,-577,-577,-577,-577,-577,-577,-577,-619,-616,-1345,-881,-2217,-1677,-3580,-1711,-1756,-2334,-29973,-29974,-12844,-1597,-29980,-29981,-29981,-29982,-29982,-29983,-29983,-29984,-29985,-29986,-29986,-29982,-29987,-29988,-29988,-29989,-29991,-29990,-29993,-29994,-29994,-29995]} 1. e4 {[%emt 0:06:23]} e5 {[%emt 0:00:45]} 2. Nf3 {[%emt 0:00:16]} Nc6 {[%emt 0:00:09]} 3. Bb5 {[%emt 0:00:07]} a6 {[%emt 0:00:09]} 4. Ba4 {[%emt 0:00:05]} Nf6 {[%emt 0:00:09]} 5. O-O {[%emt 0:00:11]} b5 {[%emt 0:00:06]} 6. Bb3 {[%emt 0:00:04]} Be7 {[%emt 0:00:10]} 7. Re1 {[%emt 0:00:10]} d6 {[%emt 0:00:05]} 8. c3 {[%emt 0:00:05]} O-O {[%emt 0:00:10]} 9. h3 {[%emt 0:00:04]} Nb8 {[%emt 0:00:09]} 10. d4 {[%emt 0:00:06]} Nbd7 {[%emt 0:00:09]} 11. Nbd2 {[%emt 0:00:26]} Bb7 {[%emt 0:00:16]} 12. Bc2 {[%emt 0:00:11]} Re8 {[%emt 0:00:07]} 13. Nf1 {[%emt 0:00:11]} Bf8 {[%emt 0:00:11]} 14. Ng3 {[%emt 0:00:09]} g6 {[%emt 0:00:11]} 15. Bd2 {[%emt 0:00:33]} Bg7 {[%emt 0:12:00]} 16. Qc1 {[%emt 0:00:39] C95: Closed Ruy Lopez: Breyer Variation with 10 d4.} Re7 {[%emt 0:20:00]} (16... d5 $11) 17. Bh6 {[%emt 0:03:50] [#]} Bxh6 $146 {[%emt 0:03:50]} ({Predecessor:} 17... Bh8 18. Qg5 Qb8 19. Rad1 Qa7 20. Re2 Rd8 21. dxe5 Nc5 22. exf6 Re6 23. Nd4 Bxf6 24. Qd2 Re5 25. Bf4 Ree8 26. Bg5 Bxg5 27. Qxg5 Qa8 28. Nh5 Re5 29. Nf5 Nd7 30. Qh6 {1-0 (30) Bress,A (1604)-Do,N (1757) Willingen 2016}) 18. Qxh6 {[%emt 0:01:39] White is slightly better.} Qf8 {[%emt 0:01:43]} 19. Qd2 {[%emt 0:04:19]} c5 {[%emt 0:09:06]} 20. d5 {[%emt 0:04:41]} Ne8 {[%emt 0:03:24]} 21. b3 {[%emt 0:20:35]} f6 {[%emt 0:06:34]} 22. a4 {[%emt 0:04:27]} Nc7 {[%emt 0:01:22]} 23. Ra2 {[%emt 0:07:59]} Nb6 {[%emt 0:11:53]} 24. axb5 {[%emt 0:13:10]} axb5 {[%emt 0:00:07]} 25. Rea1 {[%emt 0:00:14]} Rb8 {[%emt 0:04:12]} 26. Ra7 {[%emt 0:07:48]} Bc8 {[%emt 0:00:14]} 27. b4 {[%emt 0:05:11]} c4 {[%emt 0:00:09]} (27... Nca8 $14 {might be stronger.}) 28. Kh2 {[%emt 0:02:41]} h5 {[%emt 0:09:01]} (28... Ne8 $14) 29. Nh4 $16 {[%emt 0:03:59]} Kh7 {[%emt 0:01:37]} (29... Qg7 $16 30. R7a5 Rd7) 30. f4 $1 $18 {[%emt 0:02:12]} Qh6 {[%emt 0:00:36]} 31. Rf1 {[%emt 0:01:36]} Ra8 {[%emt 0:04:45]} 32. Rxa8 {[%emt 0:01:56]} Ncxa8 {[%emt 0:00:50]} 33. Qc1 {[%emt 0:02:10]} Ra7 {[%emt 0:04:47]} 34. Qd1 {[%emt 0:01:37]} (34. Rf3 $16) 34... exf4 $11 {[%emt 0:03:46]} 35. Ne2 {[%emt 0:00:02]} g5 {[%emt 0:00:06]} 36. e5+ {[%emt 0:02:28]} Kg8 {[%emt 0:00:27] [#]} 37. exd6 {[%emt 0:02:28]} gxh4 {[%emt 0:00:52]} 38. Nxf4 {[%emt 0:00:24]} f5 $1 {[%emt 0:01:24]} 39. Nxh5 $2 {[%emt 0:03:22]} (39. Kh1 $11) 39... Qxd6+ {[%emt 0:00:07]} (39... Rf7 $1 $19 40. Kh1 Qxd6) 40. Kh1 {[%emt 0:00:03]} (40. Kg1 $142 Rf7 41. Bxf5 Nxd5 42. Bxc8 Qb6+ 43. Qd4 (43. Kh1 $2 Ne3 $19)) 40... Rf7 $1 $17 {[%emt 0:02:54] Hoping for ...Nc7.} (40... Nxd5 $6 41. Bxf5 Rf7 42. Bxc8 Rxf1+ 43. Qxf1 $11) 41. Bxf5 {[%emt 0:07:20]} Qxd5 {[%emt 0:10:25]} (41... Bxf5 42. Rxf5 Rxf5 43. Qg4+ Kf8 44. Qxf5+ Ke7 45. Nf4 $17) (41... Rxf5 42. Qg4+ Kf8 43. Rxf5+ Bxf5 44. Qg7+ (44. Qxf5+ Ke7 $17) 44... Ke8 45. Nf6+ Kd8 46. Qh8+ Ke7 47. Qg7+ Kd8 48. Qh8+ Ke7 49. Qg7+ Kd8 $11) 42. Qg4+ {[%emt 0:12:37]} (42. Bg6 $142 Qxd1 43. Bxf7+ Kf8 44. Rxd1 Kxf7 45. Nf4) 42... Kf8 $19 {[%emt 0:00:16][%cal Rc8f5]} 43. Qg5 {[%emt 0:02:50][%cal Of1e1] aiming for Re1!} Qd6 {[%emt 0:03:46]} ({Not} 43... Rxf5 44. Qg7+ Ke8 45. Nf6+ (45. Re1+ $2 Be6 $19) 45... Rxf6 46. Rxf6 $17) (43... Bxf5 $142 44. Nf6 Rg7 45. Qxg7+ Kxg7 46. Nxd5 Nxd5 47. Rxf5 Nxc3 48. Rg5+ Kf7) 44. Rf3 {[%emt 0:03:39][%cal Of5d7]} Bxf5 {[%emt 0:03:15]} (44... Bb7 $2 45. Bd7 $1 {[%mdl 512]} Qd1+ 46. Kh2 Qd6+ 47. Rf4 Qxf4+ 48. Nxf4 Rxd7 49. Qxh4 $18) 45. Rxf5 {[%emt 0:00:14]} Rxf5 {[%emt 0:00:13]} 46. Qxf5+ {[%emt 0:00:10] [#]} Ke7 $1 {[%emt 0:00:05]} 47. Qg5+ {[%emt 0:01:07]} Kd7 {[%emt 0:00:24]} 48. Qxb5+ {[%emt 0:01:21]} Kc7 {[%emt 0:00:10] Threatens to win with ...Qe7.} 49. Ng7 {[%emt 0:01:36]} Qd5 {[%emt 0:07:38]} 50. Qe8 {[%emt 0:01:37]} Nd7 {[%emt 0:02:17]} (50... Kb7 $17 {And now ...Nc7 would win.} 51. Qe7+ Nd7) 51. Ne6+ $11 {[%emt 0:01:15]} Kd6 {[%emt 0:00:04]} (51... Kb7 $2 {[#]} 52. Qxa8+ $3 {[%mdl 512]} Kxa8 53. Nc7+ Kb7 54. Nxd5 $18) 52. Nd4 {[%emt 0:01:22]} Nab6 {[%emt 0:00:51]} 53. Qe1 {[%emt 0:01:02]} ({Of course not} 53. Qd8 Qe4 54. Qg8 (54. Nf3 $2 Nd5 $19) 54... Kc7 $19) 53... Qh5 {[%emt 0:05:28]} 54. Qe6+ {[%emt 0:00:16]} Kc7 {[%emt 0:00:04]} 55. Qc6+ {[%emt 0:00:36]} Kd8 {[%emt 0:00:05]} 56. Qd6 {[%emt 0:00:47]} Qd1+ {[%emt 0:02:57]} (56... Qd5 $2 57. Nc6+ Qxc6 58. Qxc6 $18) 57. Kh2 {[%emt 0:00:02]} Qd3 {[%emt 0:00:09]} 58. Nc6+ $2 {[%emt 0:01:30][%mdl 8192]} (58. Ne6+ $11 {and White stays safe.} Ke8 59. Nc7+ Kd8 60. Ne6+ Ke8 61. Nc7+ Kd8 62. Ne6+) 58... Kc8 $19 {[%emt 0:00:09]} 59. Ne7+ $2 {[%emt 0:01:18]} (59. Nd4) 59... Kb7 {[%emt 0:00:05]} 60. Qc6+ {[%emt 0:00:24]} Kb8 {[%emt 0:00:07] Strongly threatening ...Qg3+.} 61. Kh1 {[%emt 0:00:49]} Qf1+ {[%emt 0:00:54]} 62. Kh2 {[%emt 0:00:01]} Qf4+ {[%emt 0:00:06]} 63. Kh1 {[%emt 0:00:13]} Qc1+ {[%emt 0:00:59]} 64. Kh2 {[%emt 0:00:06]} Qxc3 {[%emt 0:00:14]} 65. Qd6+ {[%emt 0:01:21]} Kb7 {[%emt 0:00:05][%cal Oc3g3] ...Qg3+! is the strong threat.} 66. Qc6+ {[%emt 0:00:28]} Ka6 {[%emt 0:00:41] ( -> ...Qe5+)} 67. Nc8 {[%emt 0:00:55]} Qe5+ {[%emt 0:01:35]} 68. Kh1 {[%emt 0:00:08]} Qd5 {[%emt 0:00:19]} 69. b5+ {[%emt 0:00:50]} Ka5 {[%emt 0:00:31]} 70. Nd6 {[%emt 0:00:02]} Qd4 {[%emt 0:01:03]} 71. Ne4 {[%emt 0:01:02]} Ne5 {[%emt 0:01:03]} 72. Qb7 {[%emt 0:00:11]} Kxb5 {[%emt 0:00:13]} (72... Nd3 $142 73. Kh2 Qe5+ 74. Kg1 c3) 73. Kh2 {[%emt 0:00:44]} c3 {[%emt 0:00:36] Black mates.} 74. Nxc3+ {[%emt 0:00:31]} Qxc3 {[%emt 0:00:06]} 75. Qe4 {[%emt 0:00:08]} Qg3+ {[%emt 0:00:11]} 76. Kh1 {[%emt 0:00:15]} Nbc4 {[%emt 0:00:19]} 77. Qb7+ {[%emt 0:00:25]} Kc5 {[%emt 0:00:06]} 78. Qa7+ {[%emt 0:00:12]} Kd5 {[%emt 0:00:14]} 79. Qb7+ {[%emt 0:00:11]} Kd4 {[%emt 0:00:26]} 80. Qa7+ {[%emt 0:00:03]} Kd3 {[%emt 0:00:06]} 81. Qh7+ {[%emt 0:00:17]} Kd2 {[%emt 0:00:30]} 82. Qh6+ {[%emt 0:00:14]} Ne3 {[%emt 0:00:07][%csl Ge3][%cal Rg3g2]} 83. Qd6+ {[%emt 0:00:15]} Nd3 {[%emt 0:00:18] A wild game.  Weighted Error Value: White=0.44/Black=0.22 (precise)} 0-1